bitfinex/quotes_ETHUSD_20240924
["timestamp","ask_amount","ask_price","bid_price","bid_amount"]
[1727202073762,0.78872272,2645.4,2645.2,3.78043]
[1727202073936,0.78872272,2645.5,2645.2,0.813]
[1727202074264,0.55,2645.5,2645.3,0.07340337]
[1727202074457,0.78872272,2645.5,2645.3,0.07340337]
[1727202074767,4.56866272,2645.6,2645.2,0.813]
[1727202075268,0.78872272,2645.6,2645.3,0.07340337]
[1727202075504,0.78872272,2645.6,2645.5,3.78]
[1727202075647,0.78872272,2645.9,2645.6,0.813]
[1727202075832,0.78872272,2645.9,2645.7,0.07326715]
[1727202076439,4.56816272,2645.9,2645.7,0.07326715]
[1727202076639,5.11884054,2645.9,2645.7,0.07326715]
[1727202077084,0.78872272,2646.0,2645.7,0.07326715]
[1727202077280,4.56801272,2646.0,2645.7,0.07326715]
[1727202077573,3.77929,2646.0,2645.7,0.07326715]
[1727202077773,3.77945,2645.9,2645.7,0.07326715]
[1727202078150,0.78872272,2646.0,2645.7,0.07326715]
[1727202078483,8.34739272,2646.0,2645.7,0.07326715]
[1727202078683,0.95304768,2645.9,2645.7,0.07326715]
[1727202079090,0.78872272,2646.0,2645.7,0.07326715]
[1727202079396,0.55,2646.0,2645.7,0.07326715]
[1727202079561,0.82646302,2646.3,2646.0,0.813]
[1727202079971,0.0377403,2646.3,2646.0,0.813]
[1727202080276,0.0377403,2646.3,2646.1,0.07028147]
[1727202080482,3.8166003,2646.3,2646.1,0.07028147]
[1727202080648,4.60532302,2646.3,2646.0,0.813]
[1727202080848,4.60532302,2646.3,2646.2,0.07025951]
[1727202081048,2.31575682,2646.3,2646.0,0.813]
[1727202081260,6.09461682,2646.3,2646.2,0.07025951]
[1727202081467,5.3058941,2646.3,2646.0,0.813]
[1727202081665,5.10577382,2646.2,2646.0,0.813]
[1727202081880,5.10577382,2646.2,2646.1,0.07028147]
[1727202082084,6.44307382,2646.2,2646.1,0.07028147]
[1727202082583,3.77935,2646.0,2645.7,0.813]
[1727202082744,4.56779859,2646.0,2645.7,0.813]
[1727202082947,4.99875365,2646.0,2645.7,0.813]
[1727202083175,9.56660224,2646.0,2645.7,0.813]
[1727202083353,5.78720224,2646.0,2645.7,0.813]
[1727202083560,3.77972,2645.7,2645.4,0.813]
[1727202083782,0.377972,2645.6,2645.4,0.813]
[1727202083982,3.77972,2645.7,2645.4,0.813]
[1727202084280,3.77972,2645.7,2645.3,0.813]
[1727202084481,3.77987,2645.6,2645.3,0.813]
[1727202084790,3.77972,2645.7,2645.3,0.813]
[1727202085023,7.55954,2645.7,2645.3,0.813]
[1727202085149,8.85101986,2645.7,2645.3,0.813]
[1727202085345,3.7799,2645.6,2645.3,0.813]
[1727202085551,3.78007,2645.5,2645.0,4.59371]
[1727202085857,3.78007,2645.5,2645.0,0.813]
[1727202085858,4.56746,2645.4,2645.0,0.813]
[1727202086259,0.7873,2645.4,2645.0,0.813]
[1727202086463,3.78014,2645.4,2645.0,0.813]
[1727202087449,3.78014,2645.4,2645.1,0.07039984]
[1727202087847,4.56853859,2645.5,2645.1,0.07039984]
[1727202088151,5.6355446,2645.5,2645.1,0.07039984]
[1727202088808,9.4156346,2645.5,2645.1,0.07039984]
[1727202089009,5.6355446,2645.5,2645.1,0.07039984]
[1727202090216,0.78844859,2645.5,2645.1,3.85088984]
[1727202090414,4.96289409,2645.7,2645.1,3.85088984]
[1727202090415,4.56836859,2645.6,2645.1,3.85088984]
[1727202090577,4.56836859,2645.6,2645.1,7.63137984]
[1727202090912,4.56836859,2645.6,2645.1,3.85088984]
[1727202091286,4.56836859,2645.6,2645.1,7.63138984]
[1727202091816,3.78844859,2645.7,2645.3,3.78027]
[1727202091977,7.56816859,2645.7,2645.3,3.78027]
[1727202092178,7.56816859,2645.7,2645.4,0.06586694]
[1727202092484,5.12026086,2645.7,2645.3,3.78021]
[1727202092691,3.0,2645.7,2645.5,0.06584498]
[1727202092914,3.0,2645.7,2645.4,0.87886694]
[1727202093072,3.0,2645.7,2645.4,0.813]
[1727202093816,3.77988,2645.6,2645.1,8.37747]
[1727202094016,3.77988,2645.6,2645.5,0.06584498]
[1727202094188,3.77988,2645.6,2645.1,4.59698]
[1727202094390,3.77988,2645.6,2645.5,0.06584498]
[1727202094596,5.04179337,2645.6,2645.1,4.59698]
[1727202094913,5.04179337,2645.6,2645.5,0.06584498]
[1727202095119,5.04179337,2645.6,2645.1,4.59698]
[1727202095413,8.05209374,2645.7,2645.2,3.7804]
[1727202095619,4.27238374,2645.7,2645.2,0.06591087]
[1727202095805,3.77987,2645.6,2645.2,0.06591087]
[1727202096387,3.77987,2645.6,2645.2,3.84630087]
[1727202097199,3.77987,2645.6,2645.2,0.06591087]
[1727202098323,7.26365515,2645.7,2645.2,3.84626087]
[1727202098496,6.77972,2645.7,2645.2,3.84626087]
[1727202099119,3.77972,2645.7,2645.2,3.84626087]
[1727202099321,3.77988,2645.6,2645.2,0.06591087]
[1727202102329,5.60015686,2645.6,2645.3,0.06570984]
[1727202102525,0.78844859,2645.5,2645.3,0.06570984]
[1727202102823,5.60015686,2645.6,2645.1,0.8165]
[1727202103019,3.78,2645.5,2645.4,0.06565886]
[1727202103225,4.83632409,2645.5,2645.1,0.8165]
[1727202103429,0.78844859,2645.5,2645.4,0.06570721]
[1727202103614,0.78844859,2645.5,2645.1,0.8165]
[1727202103615,4.56844859,2645.5,2645.1,0.8165]
[1727202103930,4.56844859,2645.5,2645.4,0.06572655]
[1727202104229,4.56844859,2645.5,2645.1,0.8165]
[1727202104400,4.56859859,2645.4,2645.1,0.8165]
[1727202104729,3.78079,2645.0,2644.6,1.5]
[1727202105025,4.56896859,2645.2,2644.7,3.78112]
[1727202105026,0.78844859,2645.1,2644.7,3.78112]
[1727202105227,3.78052,2645.2,2644.7,3.78112]
[1727202105228,4.56896859,2645.2,2644.8,0.8165]
[1727202105527,0.78844859,2645.1,2644.8,0.8165]
[1727202105734,4.56896859,2645.2,2644.8,0.8165]
[1727202106034,0.78844859,2645.1,2644.8,0.8165]
[1727202107101,0.78844859,2645.3,2645.0,3.78071]
[1727202107301,0.78844859,2645.3,2645.0,7.56134]
[1727202107502,0.78844859,2645.3,2645.0,3.78063]
[1727202108008,0.78844859,2645.2,2645.0,3.78063]
[1727202108216,0.78844859,2645.2,2645.0,7.56127]
[1727202108543,0.78844859,2645.2,2645.1,3.78057]
[1727202108849,0.78844859,2645.4,2645.2,3.78043]
[1727202109338,0.78844859,2645.4,2645.1,0.7989]
[1727202109632,0.78844859,2645.3,2645.1,0.7989]
[1727202110157,0.78844859,2645.2,2644.9,0.7989]
[1727202110312,0.78844859,2645.1,2644.9,0.7989]
[1727202111026,0.78844859,2645.2,2644.9,4.57975]
[1727202111224,0.78844859,2645.1,2645.0,0.06599819]
[1727202112098,1.18308409,2645.2,2645.0,0.06599819]
[1727202112640,0.79048876,2645.1,2645.0,0.06599819]
[1727202112819,1.18308409,2645.2,2645.0,0.06599819]
[1727202113337,1.18308409,2645.2,2644.8,3.78087]
[1727202113503,0.79049376,2645.1,2644.8,3.78087]
[1727202114004,0.79049376,2645.0,2644.8,3.78087]
[1727202114522,0.79049376,2645.0,2644.7,0.7989]
[1727202114722,0.79049376,2645.0,2644.7,4.58004]
[1727202115444,0.79049376,2645.0,2644.7,0.7989]
[1727202116609,0.79049376,2644.9,2644.7,0.7989]
[1727202116800,3.7809,2644.9,2644.7,0.7989]
[1727202116999,4.57139376,2644.9,2644.7,0.7989]
[1727202117545,0.79049376,2644.9,2644.8,0.06616302]
[1727202117913,0.79049376,2644.9,2644.7,0.7989]
[1727202118122,0.79049376,2644.9,2644.8,0.06616302]
[1727202118509,0.79049376,2644.9,2644.7,0.7989]
[1727202118707,0.79049376,2644.9,2644.8,0.06616302]
[1727202118914,0.79049376,2644.9,2644.7,0.7989]
[1727202119212,0.79049376,2644.9,2644.8,0.06616302]
[1727202119411,0.79049376,2644.9,2644.7,0.7989]
[1727202119845,0.79049376,2644.9,2644.8,0.06616302]
[1727202120342,0.79049376,2644.9,2644.7,0.7989]
[1727202120546,0.79049376,2644.9,2644.8,0.06616302]
[1727202120918,4.96382409,2645.0,2644.6,5.28128]
[1727202121122,0.79121334,2644.9,2644.6,5.28128]
[1727202122056,0.79121334,2645.2,2645.1,0.7989]
[1727202122366,0.79121334,2645.4,2645.3,3.78028]
[1727202122526,0.79121334,2645.5,2645.3,3.78028]
[1727202123558,0.79047663,2645.7,2645.5,3.78]
[1727202123755,0.79047663,2645.7,2645.5,3.85559247]
[1727202123960,0.79047663,2645.8,2645.7,3.77971]
[1727202124111,0.79047663,2645.9,2645.8,3.77957]
[1727202124310,0.79047663,2645.9,2645.8,4.60027]
[1727202124553,1.57744545,2646.2,2645.9,3.77943]
[1727202124554,0.79047663,2646.0,2645.9,3.77943]
[1727202124752,1.18308409,2646.2,2646.0,3.77928]
[1727202125110,1.18308409,2646.2,2645.8,0.8207]
[1727202125452,1.18308409,2646.2,2646.1,3.77914]
[1727202125453,0.79052199,2646.2,2646.1,3.77914]
[1727202126527,0.79052199,2646.2,2646.1,4.59984]
[1727202127568,0.82826229,2646.3,2646.2,3.779]
[1727202128059,0.0377403,2646.3,2646.2,3.779]
[1727202128948,0.0377403,2646.3,2646.2,3.85457448]
[1727202129154,0.0377403,2646.3,2646.2,4.70001593]
[1727202129355,0.0377403,2646.3,2646.2,7.83335389]
[1727202129671,0.0377403,2646.3,2646.2,8.65405389]
[1727202129852,0.0377403,2646.3,2646.2,8.5784829]
[1727202132540,0.0377403,2646.3,2646.2,5.51037346]
[1727202136282,0.0377403,2646.3,2646.2,5.58594043]
[1727202136582,0.0377403,2646.3,2646.2,8.71928188]
[1727202136780,0.0377403,2646.3,2646.2,8.64371491]
[1727202137769,0.0377403,2646.3,2646.2,0.06523201]
[1727202138170,3.8166003,2646.3,2645.8,4.60025]
[1727202138372,0.0377403,2646.3,2646.2,0.06432339]
[1727202138578,0.0377403,2646.3,2646.1,3.77914]
[1727202138741,0.0377403,2646.3,2646.2,0.06432822]
[1727202138955,0.0377403,2646.3,2646.2,3.779]
[1727202139163,0.0377403,2646.3,2646.2,5.49556654]
[1727202140371,0.0377403,2646.3,2646.2,5.49555757]
[1727202140555,0.0377403,2646.3,2646.2,5.41999548]
[1727202141462,0.0377403,2646.3,2646.2,8.49555212]
[1727202141668,0.0377403,2646.3,2646.2,8.41999548]
[1727202145514,0.0377403,2646.3,2646.2,8.96999548]
[1727202145686,0.0377403,2647.1,2647.0,3.77786]
[1727202146080,0.0377403,2647.1,2647.0,3.8414718]
[1727202146610,0.0377403,2647.1,2647.0,0.0636118]
[1727202148212,0.0377403,2647.1,2646.7,3.85374774]
[1727202148525,0.0377403,2647.1,2646.7,7.63190774]
[1727202148730,0.0377403,2647.1,2646.8,0.06360257]
[1727202148938,7.72721145,2647.0,2646.3,3.77876]
[1727202149092,3.778,2646.9,2646.4,3.77863]
[1727202149837,3.778,2646.9,2646.3,3.77876]
[1727202150011,3.778,2646.9,2646.5,3.77857]
[1727202150931,1.59239518,2647.0,2646.6,3.77841]
[1727202151135,0.8159,2647.0,2646.5,3.77857]
[1727202151435,0.0377403,2647.1,2646.8,3.77812]
[1727202151620,0.0377403,2647.1,2646.9,4.533599]
[1727202151999,0.0377403,2647.1,2647.0,3.77786]
[1727202154602,0.0377403,2647.1,2647.0,7.80225175]
[1727202154911,0.0377403,2647.1,2647.0,4.59336]
[1727202155538,0.0377403,2647.1,2647.0,4.66890559]
[1727202155833,0.0377403,2647.1,2647.0,4.59336]
[1727202156003,0.0377403,2647.1,2647.0,5.74382815]
[1727202158732,0.0377403,2647.1,2647.0,4.92832815]
[1727202159238,0.0377403,2647.1,2647.0,5.69512815]
[1727202159410,0.0377403,2647.1,2647.0,5.77067036]
[1727202160711,0.0377403,2647.1,2647.0,5.69512815]
[1727202160916,0.0377403,2647.1,2647.0,4.92832815]
[1727202161263,0.0377403,2647.1,2647.0,3.77786]
[1727202162112,0.0377403,2647.1,2646.9,3.778]
[1727202162501,0.0377403,2647.1,2647.0,0.06128536]
[1727202163505,0.0377403,2647.1,2647.0,3.83914536]
[1727202163837,0.0377403,2647.1,2647.0,4.75307909]
[1727202164962,0.0377403,2647.1,2647.0,4.6775299]
[1727202165157,0.0377403,2647.1,2647.0,4.75307909]
[1727202165455,0.0377403,2647.1,2647.0,4.6775299]
[1727202165656,0.0377403,2647.1,2647.0,4.7530791]
[1727202166555,0.0377403,2647.1,2647.0,4.6775299]
[1727202166715,0.0377403,2647.1,2647.0,4.75307906]
[1727202167364,0.0377403,2647.1,2647.0,4.6775299]
[1727202167717,0.0377403,2647.1,2647.0,0.8996699]
[1727202167960,0.0377403,2647.1,2647.0,0.06128536]
[1727202170028,0.0377403,2647.1,2646.8,3.77814]
[1727202170330,0.0377403,2647.1,2647.0,3.77786]
[1727202170745,0.0377403,2647.1,2647.0,3.83918397]
[1727202170965,0.0377403,2647.1,2647.0,3.91473419]
[1727202171122,0.0377403,2647.1,2647.0,4.75926561]
[1727202172871,0.0377403,2647.1,2647.0,4.68371539]
[1727202173573,0.0377403,2647.1,2647.0,4.75926458]
[1727202176145,0.0377403,2647.1,2647.0,4.68371539]
[1727202178166,0.0377403,2647.1,2647.0,4.75926467]
[1727202178672,0.0377403,2647.1,2647.0,4.68371539]
[1727202179672,0.0377403,2647.1,2647.0,0.06132397]
[1727202179877,0.82826229,2647.1,2647.0,0.06132397]
[1727202180176,0.82826229,2647.1,2646.7,3.77817]
[1727202180177,5.4015698,2647.1,2646.7,3.77817]
[1727202180378,5.40156782,2647.1,2647.0,0.0613336]
[1727202180584,0.0377403,2647.1,2647.0,4.53046]
[1727202180764,0.0377403,2647.1,2647.0,5.05239536]
[1727202181081,0.0377403,2647.1,2647.0,5.12794389]
[1727202182479,0.0377403,2647.1,2647.0,4.29979536]
[1727202182637,0.8331403,2647.1,2647.0,0.0613336]
[1727202182844,1.62385782,2647.1,2647.0,0.0613336]
[1727202183039,2.01622439,2647.1,2646.8,3.77814]
[1727202183240,0.79052725,2647.0,2646.8,3.77814]
[1727202183546,0.79052725,2647.0,2646.4,4.53121]
[1727202183547,3.77807,2646.9,2646.4,4.53121]
[1727202183742,0.79052725,2647.0,2646.5,3.77847]
[1727202183743,0.79052725,2646.8,2646.5,3.77847]
[1727202183983,0.79052725,2646.9,2646.5,3.77847]
[1727202184275,0.79052725,2646.8,2646.5,3.77847]
[1727202185045,0.79052725,2646.7,2646.5,3.77847]
[1727202185245,0.79052725,2646.7,2646.6,0.36074457]
[1727202185897,1.60322725,2646.7,2646.6,0.36074457]
[1727202186252,1.60322725,2646.7,2646.5,3.77857]
[1727202188065,1.60322725,2646.7,2646.6,3.77843]
[1727202188263,0.79052725,2646.7,2646.6,3.77843]
[1727202188670,0.79052725,2646.9,2646.7,3.77828]
[1727202188995,0.79107824,2646.9,2646.8,3.77814]
[1727202189173,0.79107824,2646.9,2646.8,4.61807686]
[1727202189378,0.79107824,2647.0,2646.9,3.778]
[1727202189708,0.79107824,2647.0,2646.8,4.61807686]
[1727202189900,0.79121066,2646.9,2646.8,3.77814]
[1727202190780,0.79121066,2646.9,2646.7,3.77826]
[1727202190969,0.79121066,2646.9,2646.6,3.77833]
[1727202191171,0.79121066,2646.9,2646.7,3.77827]
[1727202192475,0.79121066,2646.8,2646.5,3.77855]
[1727202192807,0.79121066,2646.7,2646.5,3.77855]
[1727202194104,0.79121066,2646.7,2646.6,3.77843]
[1727202194492,0.79121066,2646.7,2646.5,3.77855]
[1727202194703,0.79121066,2646.7,2646.5,7.55704]
[1727202194908,0.79121066,2646.7,2646.6,3.77843]
[1727202196012,0.79121066,2646.7,2646.5,7.55704]
[1727202196306,0.79121066,2646.7,2646.5,3.77848]
[1727202196472,0.79121066,2646.7,2646.2,3.2674]
[1727202196667,1.60391066,2646.6,2646.4,3.77871]
[1727202197103,0.79121066,2646.5,2646.2,6.27898]
[1727202197493,0.79121066,2646.5,2646.3,3.77883]
[1727202197715,0.79121066,2646.5,2646.2,6.279]
[1727202198812,0.79121066,2646.5,2646.2,2.5]
[1727202199103,0.79121066,2646.4,2646.2,6.27893]
[1727202199313,0.79121066,2646.5,2646.2,6.27893]
[1727202199671,0.79121066,2646.5,2646.2,2.5]
[1727202199872,0.79121066,2646.5,2646.2,6.27892]
[1727202200080,1.60391066,2646.6,2646.3,3.77872]
[1727202200282,0.79121066,2646.5,2646.3,3.77872]
[1727202200505,1.60391066,2646.6,2646.3,3.77872]
[1727202201111,0.79121066,2646.5,2646.3,7.55751]
[1727202201309,1.60391066,2646.6,2646.3,3.77872]
[1727202204201,1.60391066,2646.6,2646.3,7.55751]
[1727202204393,1.60391066,2646.6,2646.3,3.77872]
[1727202204587,1.60391066,2646.6,2646.3,1.1140305]
[1727202204794,0.8127,2646.6,2646.5,3.77857]
[1727202205125,1.60391066,2646.6,2646.5,3.77857]
[1727202205424,1.60391066,2646.6,2646.4,7.55723]
[1727202205626,1.60391066,2646.6,2646.5,3.77857]
[1727202206330,0.8127,2646.6,2646.5,3.77857]
[1727202206547,1.60391066,2646.6,2646.5,3.77857]
[1727202207024,0.79121066,2646.7,2646.5,3.77857]
[1727202207528,0.79121066,2646.7,2646.6,3.84046466]
[1727202208628,0.79121066,2647.0,2646.8,3.77814]
[1727202208842,0.79121066,2647.0,2646.8,3.77805]
[1727202209067,0.79121066,2647.0,2646.9,0.06195434]
[1727202209361,0.79054481,2647.0,2646.7,3.77821]
[1727202209507,0.79054481,2647.0,2646.8,3.84010628]
[1727202210235,1.22082439,2647.1,2646.8,3.84010628]
[1727202210236,0.79054481,2646.9,2646.8,3.84010628]
[1727202210948,0.79054481,2647.0,2646.8,3.84010628]
[1727202211545,0.79054481,2647.0,2646.8,3.84005628]
[1727202211952,0.79054481,2647.0,2646.9,4.5454]
[1727202212243,0.0377403,2647.1,2647.0,3.77786]
[1727202212611,0.0377403,2647.1,2647.0,3.8397103]
[1727202212830,0.0377403,2647.1,2647.0,5.45462706]
[1727202218038,0.0377403,2647.1,2647.0,0.0618503]
[1727202218298,0.8113403,2647.1,2647.0,0.0618503]
[1727202218451,0.8113403,2647.1,2646.8,3.77803]
[1727202218650,0.8113403,2647.1,2647.0,0.06143016]
[1727202218863,1.60188511,2647.1,2646.9,0.0614521]
[1727202219074,1.60188511,2647.1,2647.0,0.06143016]
[1727202219444,1.60188511,2647.1,2646.7,3.77815]
[1727202219445,1.60188511,2647.1,2646.8,3.77814]
[1727202219658,1.60188511,2647.1,2647.0,0.06143016]
[1727202219862,1.60188511,2647.1,2646.9,0.0614521]
[1727202220153,1.60188511,2647.1,2647.0,0.06143016]
[1727202221544,0.82828511,2647.1,2647.0,0.06143016]
[1727202222549,0.82828511,2647.1,2647.0,0.56143016]
[1727202226048,0.82828511,2647.1,2647.0,4.33929016]
[1727202226279,0.82828511,2647.1,2647.0,5.23429118]
[1727202226280,0.0377403,2647.1,2647.0,5.23429118]
[1727202226695,0.0377403,2647.1,2647.0,5.73429118]
[1727202229255,0.0377403,2647.1,2647.0,5.80983902]
[1727202230085,0.0377403,2647.1,2647.0,5.73429118]
[1727202230397,0.0377403,2647.1,2647.0,5.80983878]
[1727202230693,0.0377403,2647.1,2647.0,6.30983878]
[1727202231478,0.0377403,2647.1,2647.0,10.02089118]
[1727202232263,0.0377403,2647.1,2647.0,15.19003323]
[1727202233279,0.0377403,2647.9,2647.0,15.19003323]
[1727202233280,0.0377403,2647.9,2647.8,4.56332]
[1727202233675,0.0377403,2647.9,2647.8,4.62435072]
[1727202234394,0.0377403,2647.9,2647.8,4.6998693]
[1727202235171,0.0377403,2647.9,2647.8,7.6998693]
[1727202235371,0.0377403,2647.9,2647.8,7.62435072]
[1727202235569,0.0377403,2647.9,2647.8,9.07780494]
[1727202236001,0.0377403,2647.9,2647.8,6.07780494]
[1727202242676,0.0377403,2647.9,2647.8,3.83775072]
[1727202243248,0.0377403,2647.9,2647.8,0.06103072]
[1727202243715,0.0377403,2647.9,2647.8,3.77672]
[1727202243875,0.0377403,2647.9,2647.8,3.83681933]
[1727202244077,0.0377403,2647.9,2647.8,0.06009933]
[1727202244277,0.49737033,2647.9,2647.8,0.06009933]
[1727202244633,0.0377403,2647.9,2647.8,0.06009933]
[1727202244907,0.0377403,2647.9,2647.5,3.77703]
[1727202245079,0.0377403,2647.9,2647.8,0.06009933]
[1727202245280,0.0377403,2647.9,2647.5,3.77703]
[1727202245511,0.0377403,2647.9,2647.8,0.06009933]
[1727202245714,0.0377403,2647.9,2647.5,7.5541]
[1727202245715,0.0377403,2647.9,2647.5,3.77703]
[1727202245875,0.0377403,2647.9,2647.8,0.06009933]
[1727202246080,0.0377403,2647.9,2647.5,7.55409]
[1727202246313,0.0377403,2647.9,2647.8,0.06009933]
[1727202246473,0.0377403,2647.9,2647.5,7.55409]
[1727202246474,0.0377403,2647.9,2647.7,3.7768]
[1727202246690,0.0377403,2647.9,2647.8,0.06009933]
[1727202247121,0.0377403,2647.9,2647.6,3.7769]
[1727202247429,0.0377403,2647.9,2647.8,0.06057215]
[1727202247627,0.0377403,2647.9,2647.7,3.77683]
[1727202247847,0.0377403,2647.9,2647.8,3.83729215]
[1727202249992,0.0377403,2647.9,2647.8,7.04616247]
[1727202250197,0.0377403,2647.9,2647.8,7.84554989]
[1727202250701,0.0377403,2647.9,2647.8,7.7700336]
[1727202251293,0.0377403,2647.9,2647.8,10.84555177]
[1727202251491,0.0377403,2647.9,2647.8,12.27004008]
[1727202263066,0.0377403,2647.9,2647.8,9.13669863]
[1727202263266,0.0377403,2647.9,2647.8,7.63669215]
[1727202263966,0.0377403,2647.9,2647.8,6.83729215]
[1727202264839,0.0377403,2647.9,2647.8,3.83729215]
[1727202272982,0.0377403,2647.9,2647.8,0.06057215]
[1727202273166,0.8595403,2647.9,2647.7,3.77683]
[1727202273753,0.8595403,2647.9,2647.8,0.05843268]
[1727202273977,0.8595403,2647.9,2647.7,7.5536]
[1727202274163,0.8595403,2647.9,2647.3,3.7774]
[1727202274164,0.8595403,2647.9,2647.8,0.05853399]
[1727202274361,0.8595403,2647.9,2647.5,3.77705]
[1727202274581,0.8595403,2647.9,2647.6,0.05859715]
[1727202274778,1.32314433,2647.9,2647.6,0.05859715]
[1727202275184,4.27797433,2647.9,2647.6,0.05859715]
[1727202275356,0.7919,2647.7,2647.4,3.77727]
[1727202275556,0.7919,2647.7,2647.5,0.05861908]
[1727202277288,3.777,2647.6,2647.5,0.05861908]
[1727202277473,5.48253148,2647.6,2647.5,0.05861908]
[1727202277677,5.48253148,2647.6,2647.1,3.77761]
[1727202277884,5.48253148,2647.6,2647.5,0.05861908]
[1727202278088,5.48253148,2647.6,2647.1,3.77761]
[1727202278262,6.27307629,2647.6,2647.1,3.77761]
[1727202278466,0.62730763,2647.5,2647.2,0.05868487]
[1727202279102,0.62730763,2647.5,2647.3,3.77743]
[1727202279304,0.7919,2647.6,2647.3,3.77743]
[1727202279478,0.7919,2647.6,2647.2,3.83624487]
[1727202279479,0.7919,2647.6,2647.4,0.05894981]
[1727202279804,0.7919,2647.6,2647.5,0.05892788]
[1727202279969,0.7919,2647.6,2647.2,3.77756]
[1727202280170,5.60082389,2647.6,2647.3,0.05897174]
[1727202280366,0.7919,2647.5,2647.3,0.05897174]
[1727202287964,0.7919,2647.5,2647.3,3.83632174]
[1727202288128,0.7919,2647.5,2647.3,0.05897174]
[1727202289323,0.7919,2647.5,2647.4,0.5]
[1727202289716,0.7919,2647.5,2647.4,0.55894981]
[1727202293389,0.7919,2647.5,2647.4,1.05894981]
[1727202294501,5.575917,2647.5,2647.4,1.05894981]
[1727202294696,5.11904,2647.5,2647.4,1.05894981]
[1727202294927,1.3419,2647.5,2647.4,1.05894981]
[1727202296701,5.11904,2647.5,2647.4,1.05894981]
[1727202297412,5.11904,2647.5,2647.4,1.55894981]
[1727202297611,6.32198014,2647.5,2647.4,1.55894981]
[1727202301609,6.32198014,2647.5,2647.4,2.05894981]
[1727202302735,2.54484014,2647.5,2647.4,2.05894981]
[1727202302971,6.32198014,2647.5,2647.4,2.05894981]
[1727202303648,0.7927,2647.8,2647.4,5.83623981]
[1727202304142,0.7927,2647.8,2647.4,5.77729]
[1727202304347,2.73720468,2647.9,2647.4,2.0]
[1727202304546,4.56737481,2647.8,2647.5,0.05929946]
[1727202304748,4.92419488,2647.8,2647.5,0.05929946]
[1727202305450,4.327,2647.6,2647.5,0.05929946]
[1727202306019,0.55,2647.6,2647.5,0.05929946]
[1727202307366,1.1288,2647.6,2647.5,0.05929946]
[1727202310565,1.91934481,2647.6,2647.5,0.05929946]
[1727202310764,1.36934481,2647.6,2647.5,0.05929946]
[1727202310968,0.79054481,2647.7,2647.5,0.05929946]
[1727202311963,0.79054481,2647.7,2647.5,3.83642946]
[1727202312166,0.79054481,2647.8,2647.6,3.777]
[1727202312336,0.79054481,2647.7,2647.6,3.777]
[1727202312659,0.79054481,2647.7,2647.5,4.81586695]
[1727202313037,0.79054481,2647.6,2647.5,4.81586695]
[1727202313266,0.79054481,2647.7,2647.4,2.0]
[1727202313466,0.79054481,2647.6,2647.4,5.77729]
[1727202313855,1.18308409,2647.8,2647.4,5.77729]
[1727202313856,0.79054481,2647.7,2647.4,5.77729]
[1727202314057,0.79054481,2647.6,2647.4,5.77729]
[1727202314806,0.79054481,2647.6,2647.4,9.55449]
[1727202314985,0.79054481,2647.6,2647.4,5.7772]
[1727202315299,0.79054481,2647.6,2647.5,3.77714]
[1727202318418,1.18308409,2647.7,2647.4,5.7772]
[1727202318575,1.57744545,2647.8,2647.6,3.777]
[1727202318775,1.18358742,2647.7,2647.6,3.777]
[1727202319191,1.18358742,2647.7,2647.6,4.73242]
[1727202319417,0.8267254,2647.9,2647.7,3.77686]
[1727202319720,0.8267254,2647.9,2647.8,6.03603554]
[1727202319721,0.0377403,2647.9,2647.8,6.03603554]
[1727202319887,0.0377403,2647.9,2647.8,7.47410925]
[1727202320090,0.0377403,2647.9,2647.8,7.54963412]
[1727202320309,0.0377403,2647.9,2647.8,8.05220303]
[1727202320623,0.0377403,2647.9,2647.8,6.02879371]
[1727202321589,0.0377403,2647.9,2647.8,5.66755155]
[1727202324738,0.0377403,2647.9,2647.8,0.814]
[1727202324908,0.0377403,2647.9,2647.7,3.77678]
[1727202326202,0.0377403,2647.9,2647.8,3.77672]
[1727202327572,0.0377403,2647.9,2647.8,0.05367872]
[1727202328021,0.0377403,2647.9,2647.7,3.77678]
[1727202328349,0.0377403,2647.9,2647.8,0.05369319]
[1727202328845,0.0377403,2647.9,2647.8,0.05368837]
[1727202329144,0.0377403,2647.9,2647.7,3.77678]
[1727202329350,0.0377403,2647.9,2647.8,0.05368837]
[1727202329716,0.0377403,2647.9,2647.7,3.77678]
[1727202330061,0.0377403,2647.9,2647.8,0.05368837]
[1727202330428,0.0377403,2647.9,2647.8,0.05370284]
[1727202330655,0.0377403,2647.9,2647.7,3.77677]
[1727202330852,0.0377403,2647.9,2647.8,3.77672]
[1727202331013,0.0377403,2647.9,2647.8,3.83042284]
[1727202331360,0.0377403,2647.9,2647.8,4.59114212]
[1727202331546,0.0377403,2647.9,2647.8,5.40514212]
[1727202332262,0.0377403,2647.9,2647.8,5.48066782]
[1727202332421,0.0377403,2647.9,2647.8,5.40514212]
[1727202332818,0.0377403,2647.9,2647.8,5.4806618]
[1727202333019,0.0377403,2647.9,2647.8,5.4806612]
[1727202333460,0.0377403,2647.9,2647.8,5.40514212]
[1727202339242,0.0377403,2647.9,2647.8,5.48066112]
[1727202339463,0.0377403,2647.9,2647.8,5.40514212]
[1727202340137,0.0377403,2647.9,2647.8,5.48066101]
[1727202340536,0.0377403,2647.9,2647.8,5.40514212]
[1727202342465,0.0377403,2647.9,2647.8,5.48066109]
[1727202343261,0.0377403,2647.9,2647.8,5.40514212]
[1727202343841,0.0377403,2647.9,2647.8,0.05370284]
[1727202344159,0.0377403,2647.9,2647.7,3.77685]
[1727202344462,0.0377403,2647.9,2647.8,0.05011148]
[1727202344662,0.0377403,2647.9,2647.7,3.77685]
[1727202344865,0.0377403,2647.9,2647.8,0.05011148]
[1727202345023,0.0377403,2647.9,2647.7,3.77685]
[1727202345024,3.8143103,2647.9,2647.4,6.594]
[1727202345225,3.8143103,2647.9,2647.5,0.05017726]
[1727202345226,3.77709,2647.6,2647.5,0.05017726]
[1727202345426,4.35589,2647.6,2647.5,0.05017726]
[1727202345627,6.08947742,2647.6,2647.5,0.05017726]
[1727202346451,14.54051923,2647.5,2647.4,2.0]
[1727202346827,0.5788,2646.8,2646.4,3.77869]
[1727202347031,0.5788,2646.8,2646.5,3.7785]
[1727202347269,0.5788,2646.8,2646.5,3.82593242]
[1727202348479,0.5788,2646.8,2646.5,3.82596242]
[1727202349186,0.5788,2646.8,2646.5,0.04743242]
[1727202349684,0.5788,2646.8,2646.5,3.82597242]
[1727202349847,0.5788,2646.8,2646.5,0.04743242]
[1727202350567,0.5788,2646.8,2646.5,3.82596242]
[1727202351346,4.90668,2647.0,2646.5,0.04743242]
[1727202351548,6.16683842,2647.0,2646.5,0.04743242]